fUSD/lending_fUSD_20260205
["ID","MTS","AMOUNT","RATE_DAILY","PERIOD"]
[404566668,1770299439824,-4660.38038458,8.621e-05,2]
[404566669,1770299439833,-187.33368447,8.622e-05,2]
[404566670,1770299439842,-8971.865,8.623e-05,2]
[404566671,1770299439852,-879.155,8.623e-05,2]
[404566672,1770299439862,-4123.3752,8.699e-05,2]
[404566673,1770299439871,-11018.1019,8.699e-05,2]
[404566674,1770299439880,-2500.0,8.699e-05,2]
[404566675,1770299439892,-31306.20620513,8.789e-05,2]
[404566676,1770299439902,-500.0,8.796e-05,2]
[404566677,1770299439911,-2902.68857008,8.8e-05,2]
[404566678,1770299439920,-183.34,8.8e-05,2]
[404566679,1770299439930,-10000.0,8.8e-05,2]
[404566680,1770299439939,-9999.99,8.8e-05,2]
[404566681,1770299439950,-735.95,8.8e-05,2]
[404566682,1770299439959,-999.99,8.8e-05,2]
[404566683,1770299439969,-299.99,8.8e-05,2]
[404566684,1770299439978,-9999.99,8.8e-05,2]
[404566685,1770299439987,-23906.99,8.8e-05,2]
[404566686,1770299439997,-8755.47,8.8e-05,2]
[404566687,1770299440007,-310.92,8.8e-05,2]
[404566688,1770299440016,-3762.92,8.8e-05,2]
[404566689,1770299440026,-150.99,8.8e-05,2]
[404566690,1770299440035,-150.99,8.8e-05,2]
[404566691,1770299440044,-9999.99,8.8e-05,2]
[404566692,1770299440054,-1417.97567782,8.842e-05,2]
[404566693,1770299440063,-43710.12971806,8.899e-05,2]
[404566694,1770299440072,-563.0,9.042e-05,2]
[404566695,1770299440081,-500.0,9.07e-05,2]
[404566696,1770299440091,-500.0,9.117e-05,2]
[404566697,1770299440101,-420.0,9.373e-05,2]
[404566698,1770299440110,-420.0,9.373e-05,2]
[404566699,1770299440120,-1680.0,9.373e-05,2]
[404566700,1770299440130,-420.0,9.373e-05,2]
[404566701,1770299440141,-250.0,9.373e-05,2]
[404566702,1770299440150,-255.0,9.374e-05,2]
[404566704,1770299440160,-250.0,9.374e-05,2]
[404566710,1770299440399,-150.0,9.4e-05,2]
[404566711,1770299440411,-363964.32499927,9.459e-05,2]
[404566712,1770299440421,-420.0,9.483e-05,2]
[404566713,1770299440431,-500.0,9.483e-05,2]
[404566714,1770299440440,-193.49422272,9.483e-05,2]
[404566715,1770299440450,-301.95500035,9.483e-05,2]
[404566716,1770299440460,-1600.0,9.926e-05,2]
[404566717,1770299440470,-315.92210251,9.969e-05,2]
[404566718,1770299440479,-169.4141922,0.0001,2]
[404566719,1770299440491,-587.0,0.0001031,2]
[404566720,1770299440501,-373.0,0.0001031,2]
[404566721,1770299440511,-2351.0,0.0001031,2]
[404566722,1770299440520,-433.0,0.00010312,2]
[404566723,1770299440530,-587.0,0.00010431,2]
[404566724,1770299440539,-454.65083906,0.00010483,2]
[404566725,1770299440548,-1564.95483969,0.000109,2]
[404566726,1770299440564,-1564.95483962,0.000109,2]
[404566727,1770299440573,-166.66,0.00010959,2]
[404566728,1770299440582,-328.25369706,0.00010976,2]
[404566729,1770299440591,-166.66,0.00011068,2]
[404566730,1770299440600,-2640.82887064,0.00011099,2]
[404566731,1770299440609,-2640.82887057,0.00011099,2]
[404566732,1770299440619,-2640.82887057,0.00011099,2]
[404566733,1770299440628,-4935.87500135,0.00011118,2]
[404566734,1770299440637,-1600.0,0.00011167,2]
[404566735,1770299440648,-166.66,0.00011178,2]
[404566736,1770299440657,-183.0,0.00011187,2]
[404566737,1770299440667,-1000.0,0.00011198,2]
[404566738,1770299440676,-1564.95483962,0.00011201,2]
[404566739,1770299440686,-6497.0087,0.0001126,2]
[404566740,1770299440695,-166.66,0.00011288,2]
[404566741,1770299440705,-823.0,0.00011341,2]
[404566742,1770299440715,-3292.0,0.00011341,2]
[404566743,1770299440724,-736.0,0.00011343,2]
[404566744,1770299440733,-166.66,0.00011397,2]
[404566745,1770299440743,-823.0,0.00011475,2]
[404566746,1770299440752,-166.66,0.00011507,2]
[404566747,1770299440762,-150.0,0.00011625,2]
[404566748,1770299440771,-150.0,0.00011625,2]
[404566749,1770299440781,-150.0,0.0001168,2]
[404566750,1770299440790,-150.0,0.00011735,2]
[404566751,1770299440800,-2640.82887057,0.00011767,2]
[404566752,1770299440809,-150.0,0.00011789,2]
[404566753,1770299440819,-150.0,0.00011844,2]
[404566754,1770299440829,-202.05134841,0.00011899,2]
[404566755,1770299440838,-3162.01327408,0.00011961,2]
[404566756,1770299440848,-8344.60305822,0.00011961,2]
[404566757,1770299440858,-14720.8689121,0.00011961,2]
[404566758,1770299440867,-152.0,0.0001232,3]
[404566759,1770299440876,-1600.0,0.00012407,2]
[404566760,1770299440886,-1152.0,0.00012475,2]
[404566761,1770299440896,-4609.0,0.00012475,2]
[404566762,1770299440906,-912.0,0.00012476,2]
[404566763,1770299440915,-1564.95483962,0.00012541,2]
[404566764,1770299440925,-1152.0,0.00012622,2]
[404566765,1770299440934,-2640.82887057,0.00012789,2]
[404566766,1770299440944,-152.0,0.00012903,4]
[404566767,1770299440954,-493.1816,0.00013011,2]
[404566768,1770299440963,-4660.38038458,0.00013211,2]
[404566769,1770299440973,-169.4141922,0.000133,2]
[404566770,1770299440982,-3240.0,0.00013425,2]
[404566771,1770299440991,-152.0,0.00013486,5]
[404566772,1770299441001,-1600.0,0.00013648,2]
[404566773,1770299441010,-500.0,0.00013698,2]
[404566774,1770299441020,-500.0,0.00013698,2]
[404566775,1770299441030,-500.0,0.00013698,2]
[404566776,1770299441039,-500.0,0.00013698,2]
[404566777,1770299441048,-500.0,0.00013698,2]
[404566778,1770299441058,-500.0,0.00013698,2]
[404566779,1770299441067,-500.0,0.00013698,2]
[404566780,1770299441077,-500.0,0.00013698,2]
[404566781,1770299441086,-500.0,0.00013698,2]
[404566782,1770299441096,-500.0,0.00013698,2]
[404566783,1770299441105,-500.0,0.00013698,2]
[404566784,1770299441114,-448.31,0.00013698,2]
[404566785,1770299441124,-200.0,0.00013699,2]
[404566786,1770299441134,-1592.82,0.00013699,2]
[404566787,1770299441144,-1613.0,0.00013723,2]
[404566788,1770299441153,-5891.0,0.00013723,2]
[404566789,1770299441163,-2640.82887057,0.00013811,2]
[404566790,1770299441172,-1564.95483962,0.0001388,2]
[404566791,1770299441181,-1331.0,0.00013884,2]
[404566792,1770299441191,-1417.97567782,0.00013912,2]
[404566793,1770299441200,-152.0,0.0001407,6]
[404566794,1770299441210,-1592.82,0.00014384,2]
[404566795,1770299441220,-3872.79248373,0.00014579,2]
[404566796,1770299441229,-6922.53071668,0.00014579,2]
[404566797,1770299441240,-1719.6733564,0.00014579,2]
[404566798,1770299441250,-1338.10693468,0.00014579,2]
[404566799,1770299441260,-500.0,0.000146,2]
[404566800,1770299441270,-152.0,0.00014653,7]
[404566801,1770299441279,-2640.82887057,0.00014833,2]
[404566802,1770299441289,-1600.0,0.00014889,2]
[404566803,1770299441300,-250.0,0.00015,2]
[404566804,1770299441310,-152.62,0.00015,2]
[404566805,1770299441319,-160.0,0.00015063,2]
[404566806,1770299441328,-1592.82,0.00015068,2]
[404566807,1770299441338,-2258.0,0.00015095,2]
[404566808,1770299441347,-1000.0,0.00015148,2]
[404566809,1770299441358,-1564.95483962,0.0001522,2]
[404566810,1770299441367,-152.0,0.00015236,8]
[404566811,1770299441377,-152.01739561,0.00015349,2]
[404566812,1770299441387,-500.0,0.00015414,2]
[404566813,1770299441397,-1417.97567782,0.00015602,2]
[404566814,1770299441406,-1640.58835606,0.00015696,2]
[404566815,1770299441416,-1592.82,0.00015753,2]
[404566816,1770299441425,-152.0,0.00015819,9]
[404566817,1770299441435,-2640.82887057,0.00015856,2]
[404566818,1770299441445,-297.13,0.00015918,2]
[404566819,1770299441454,-665.787215,0.00015922,7]
[404566820,1770299441464,-180.54,0.00015944,2]
[404566821,1770299441474,-152.01739561,0.00016047,2]
[404566822,1770299441484,-341.90849198,0.00016245,2]
[404566823,1770299441496,-362.1536654,0.00016245,2]
[404566824,1770299441506,-152.0,0.00016402,10]
[404566825,1770299441516,-1592.82,0.00016438,2]
[404566826,1770299441524,-479.436717,0.00016481,7]
[404566827,1770299441536,-297.13,0.00016515,2]
[404566828,1770299441546,-22021.53949517,0.00016561,2]
[404566829,1770299441555,-29795.9211,0.00016561,2]
[404566830,1770299441566,-3162.0,0.00016605,2]
[404566831,1770299441577,-153.52,0.00016711,2]
[404566832,1770299441586,-152.01739561,0.00016744,2]
[404566833,1770299441595,-2640.82887057,0.00016878,2]
[404566834,1770299441604,-549.0,0.00016914,2]
[404566835,1770299441613,-1687.0,0.00016937,2]
[404566836,1770299441623,-152.0,0.00016985,11]
[404566837,1770299441632,-500.0,0.00017,2]
[404566838,1770299441641,-300.0,0.00017,2]
[404566839,1770299441651,-1687.0,0.00017098,2]
[404566840,1770299441660,-277.35679052,0.00017099,2]
[404566841,1770299441669,-297.13,0.00017112,2]
[404566842,1770299441679,-1687.0,0.00017196,2]
[404566843,1770299441688,-305.84785682,0.00017213,2]
[404566844,1770299441697,-1687.0,0.00017257,2]
[404566845,1770299441712,-1000.0,0.0001726,2]
[404566846,1770299441721,-1687.0,0.0001729,2]
[404566847,1770299441731,-1417.97567782,0.00017292,2]
[404566848,1770299441740,-701.0,0.00017348,2]
[404566849,1770299441750,-701.0,0.00017419,2]
[404566850,1770299441759,-152.01739561,0.00017442,2]
[404566851,1770299441769,-1000.0,0.00017534,2]
[404566852,1770299441779,-152.0,0.00017569,12]
[404566853,1770299441788,-773.71,0.00017595,2]
[404566854,1770299441798,-287.61899177,0.00017647,2]
[404566855,1770299441807,-297.13,0.00017709,2]
[404566856,1770299441818,-701.0,0.00017781,2]
[404566857,1770299441827,-869.18,0.00017792,2]
[404566858,1770299441837,-1000.0,0.00017808,2]
[404566859,1770299441847,-1000.0,0.00017809,2]
[404566860,1770299441857,-1000.0,0.00017809,2]
[404566861,1770299441867,-1000.0,0.00017809,2]
[404566862,1770299441877,-180.54,0.00017819,2]
[404566863,1770299441887,-262.08417,0.0001782,2]
[404566864,1770299441897,-262.08418,0.0001782,2]
[404566865,1770299441907,-1000.0,0.0001782,2]
[404566866,1770299441917,-1000.0,0.0001782,2]
[404566867,1770299441927,-1000.0,0.0001782,2]
[404566868,1770299441937,-1000.0,0.0001782,2]
[404566869,1770299441947,-1000.0,0.0001782,2]
[404566870,1770299441956,-1000.0,0.0001782,2]
[404566871,1770299441966,-1000.0,0.0001782,2]
[404566872,1770299441976,-1000.0,0.0001782,2]
[404566873,1770299441986,-506.851,0.0001782,2]
[404566874,1770299441995,-200.0,0.00017855,2]
[404566875,1770299442005,-500.0,0.00017856,2]
[404566876,1770299442015,-500.0,0.00017856,2]
[404566877,1770299442025,-200.0,0.00017856,2]
[404566878,1770299442035,-701.0,0.00017862,2]
[404566879,1770299442044,-701.0,0.00017889,2]
[404566880,1770299442054,-25000.0,0.00017891,3]
[404566881,1770299442069,-500.0,0.000179,2]
[404566882,1770299442079,-25000.0,0.000179,3]
[404566883,1770299442089,-160.0,0.000179,3]
[404566884,1770299442100,-12968.13672429,0.000179,3]
[404566885,1770299442110,-169.4141922,0.000179,2]
[404566886,1770299442120,-2640.82887057,0.000179,2]
[404566887,1770299442130,-4660.38038458,0.000179,2]
[404566888,1770299442140,-15455.0,0.000179,2]
[404566889,1770299442152,-701.0,0.00017932,2]
[404566890,1770299442162,-500.0,0.00017973,2]
[404566891,1770299442172,-500.0,0.00017973,2]
[404566892,1770299442182,-500.0,0.00017973,2]
[404566893,1770299442192,-500.0,0.00017973,2]
[404566894,1770299442202,-500.0,0.00017973,2]
[404566895,1770299442212,-500.0,0.00017973,2]
[404566896,1770299442222,-500.0,0.00017973,2]
[404566898,1770299442233,-500.0,0.00017973,2]
[404566900,1770299442243,-520.97702983,0.00017973,2]
[404566901,1770299442254,-500.0,0.00017973,2]
[404566902,1770299442263,-500.0,0.00017973,2]
[404566903,1770299442273,-500.0,0.00017973,2]
[404566904,1770299442284,-500.0,0.00017973,2]
[404566905,1770299442294,-500.0,0.00017973,2]
[404566906,1770299442304,-500.0,0.00017973,2]
[404566907,1770299442314,-500.0,0.00017973,2]
[404566908,1770299442324,-500.0,0.00017973,2]
[404566909,1770299442334,-309.44398841,0.00017973,2]
[404566910,1770299442344,-500.0,0.00017973,2]
[404566911,1770299442354,-500.0,0.00017973,2]
[404566912,1770299442365,-500.0,0.00017973,2]
[404566913,1770299442375,-500.0,0.00017973,2]
[404566914,1770299442385,-561.5530591,0.00017973,2]
[404566915,1770299442398,-500.0,0.00017973,2]
[404566916,1770299442408,-500.0,0.00017973,2]
[404566917,1770299442418,-500.0,0.00017973,2]
[404566918,1770299442432,-500.0,0.00017973,2]
[404566919,1770299442442,-500.0,0.00017973,2]
[404566920,1770299442453,-262.39107038,0.00017973,2]
[404566921,1770299442464,-500.0,0.00017973,2]
[404566922,1770299442474,-500.0,0.00017973,2]
[404566923,1770299442484,-500.0,0.00017973,2]
[404566924,1770299442497,-500.0,0.00017973,2]
[404566925,1770299442507,-500.0,0.00017973,2]
[404566926,1770299442517,-500.0,0.00017973,2]
[404566927,1770299442527,-500.0,0.00017973,2]
[404566928,1770299442538,-160.11845722,0.00017973,2]
[404566929,1770299442548,-502.08032841,0.00017973,2]
[404566930,1770299442559,-500.0,0.00017973,2]
[404566931,1770299442570,-500.0,0.00017973,2]
[404566932,1770299442580,-500.0,0.00017973,2]
[404566933,1770299442590,-500.0,0.00017973,2]
[404566934,1770299442600,-500.0,0.00017973,2]
[404566935,1770299442610,-500.0,0.00017973,2]
[404566936,1770299442620,-701.0,0.00017981,2]
[404566937,1770299442634,-1000.0,0.00017983,2]
[404566938,1770299442644,-256.366,0.00017983,2]
[404566939,1770299442654,-200.0,0.00017998,5]
[404566940,1770299442664,-200.0,0.00017998,5]
[404566941,1770299442675,-322.6107,0.00017998,5]
[404566942,1770299442685,-200.0,0.00017998,5]
[404566943,1770299442695,-334.5472959,0.00017998,5]
[404566944,1770299442704,-200.0,0.00017998,5]
[404566945,1770299442714,-200.0,0.00017998,5]
[404566946,1770299442724,-174.61919141,0.00017998,5]
[404566947,1770299442734,-200.0,0.00017998,5]
[404566948,1770299442744,-181.08010149,0.00017998,5]
[404566949,1770299442753,-200.0,0.00017998,5]
[404566950,1770299442763,-187.78006525,0.00017998,5]
[404566951,1770299442773,-200.0,0.00017998,5]
[404566952,1770299442784,-194.72792766,0.00017998,5]
[404566953,1770299442794,-346.92554585,0.00017998,5]
[404566954,1770299442808,-200.0,0.00017998,5]
[404566955,1770299442818,-201.93286099,0.00017998,5]
[404566956,1770299442828,-359.76179104,0.00017998,5]
[404566957,1770299442838,-209.40437684,0.00017998,5]
[404566958,1770299442847,-200.0,0.00017998,5]
[404566959,1770299442857,-209.40437684,0.00017998,5]
[404566960,1770299442867,-217.15233878,0.00017998,5]
[404566961,1770299442877,-373.07297731,0.00017998,5]
[404566962,1770299442886,-200.0,0.00017998,5]
[404566963,1770299442898,-250.0,0.00017998,5]
[404566964,1770299442907,-217.15233878,0.00017998,5]
[404566965,1770299442917,-225.18697532,0.00017998,5]
[404566966,1770299442926,-386.87667747,0.00017998,5]
[404566967,1770299442936,-200.0,0.00017998,5]
[404566968,1770299442945,-5000.0,0.00017998,5]
[404566969,1770299442955,-250.0,0.00017998,5]
[404566970,1770299442965,-200.0,0.00017998,5]
[404566971,1770299442976,-225.18697532,0.00017998,5]
[404566972,1770299442990,-233.51889341,0.00017998,5]
[404566973,1770299443000,-401.19111454,0.00017998,5]
[404566974,1770299443010,-200.0,0.00017998,5]
[404566975,1770299443020,-5000.0,0.00017998,5]
[404566976,1770299443030,-250.0,0.00017998,5]
[404566977,1770299443040,-200.0,0.00017998,5]
[404566978,1770299443050,-233.51889341,0.00017998,5]
[404566979,1770299443060,-242.15909246,0.00017998,5]
[404566980,1770299443071,-416.03518578,0.00017998,5]
[404566981,1770299443080,-200.0,0.00017998,5]
[404566983,1770299443316,-250.0,0.00017998,5]
[404566984,1770299443328,-5000.0,0.00017998,5]
[404566985,1770299443338,-200.0,0.00017998,5]
[404566986,1770299443347,-242.15909246,0.00017998,5]
[404566987,1770299443358,-445.7744494,0.00017998,5]
[404566988,1770299443368,-251.11897888,0.00017998,5]
[404566989,1770299443378,-200.0,0.00017998,5]
[404566990,1770299443389,-431.42848765,0.00017998,5]
[404566991,1770299443401,-250.0,0.00017998,5]
[404566992,1770299443412,-5000.0,0.00017998,5]
[404566994,1770299443422,-200.0,0.00017998,5]
[404566995,1770299443432,-251.11897888,0.00017998,5]
[404566996,1770299443443,-260.4103811,0.00017998,5]
[404566997,1770299443453,-447.3913417,0.00017998,5]
[404566998,1770299443464,-200.0,0.00017998,5]
[404566999,1770299443475,-260.4103811,0.00017998,5]
[404567000,1770299443484,-463.94482134,0.00017998,5]
[404567001,1770299443496,-200.0,0.00017998,5]
[404567002,1770299443507,-200.0,0.00017998,5]
[404567003,1770299443529,-270.0455652,0.00017998,5]
[404567004,1770299443544,-270.0455652,0.00017998,5]
[404567005,1770299443555,-250.0,0.00017998,5]
[404567006,1770299443566,-5000.0,0.00017998,5]
[404567007,1770299443576,-481.11077973,0.00017998,5]
[404567008,1770299443587,-200.0,0.00017998,5]
[404567009,1770299443598,-280.03725112,0.00017998,5]
[404567010,1770299443608,-200.0,0.00017998,5]
[404567011,1770299443619,-280.03725112,0.00017998,5]
[404567012,1770299443629,-250.0,0.00017998,5]
[404567013,1770299443641,-5000.0,0.00017998,5]
[404567014,1770299443651,-498.91187858,0.00017998,5]
[404567015,1770299443662,-210.68979627,0.00017998,5]
[404567016,1770299443672,-338.91861782,0.00017998,5]
[404567017,1770299443682,-200.0,0.00017998,5]
[404567018,1770299443693,-290.39862941,0.00017998,5]
[404567019,1770299443703,-250.0,0.00017998,5]
[404567020,1770299443713,-5000.0,0.00017998,5]
[404567021,1770299443724,-517.37161808,0.00017998,5]
[404567022,1770299443734,-301.1433787,0.00017998,5]
[404567023,1770299443745,-233.22924952,0.00017998,5]
[404567024,1770299443755,-250.0,0.00017998,5]
[404567025,1770299443765,-5000.0,0.00017998,5]
[404567026,1770299443775,-536.51436795,0.00017998,5]
[404567027,1770299443785,-5000.0,0.00017998,5]
[404567028,1770299443795,-250.0,0.00017998,5]
[404567029,1770299443806,-556.36539957,0.00017998,5]
[404567030,1770299443816,-250.0,0.00017998,5]
[404567031,1770299443826,-5000.0,0.00017998,5]
[404567032,1770299443836,-576.95091935,0.00017998,5]
[404567033,1770299443846,-5000.0,0.00017998,5]
[404567034,1770299443861,-598.29810337,0.00017998,5]
[404567035,1770299443872,-5000.0,0.00017998,5]
[404567036,1770299443882,-5000.0,0.00017998,5]
[404567037,1770299443893,-5000.0,0.00017998,5]
[404567038,1770299443903,-5000.0,0.00017998,5]
[404567039,1770299443914,-500.0,0.00017998,5]
[404567040,1770299443924,-500.0,0.00017998,5]
[404567041,1770299443935,-500.0,0.00017998,5]
[404567042,1770299443946,-2000.0,0.00017998,5]
[404567043,1770299443957,-500.0,0.00017998,5]
[404567044,1770299443967,-2000.0,0.00017998,5]
[404567045,1770299443978,-500.0,0.00017998,5]
[404567046,1770299443988,-2000.0,0.00017998,5]
[404567047,1770299443999,-500.0,0.00017998,5]
[404567048,1770299444010,-2000.0,0.00017998,5]
[404567049,1770299444021,-209.40437684,0.00017998,5]
[404567050,1770299444031,-500.0,0.00017998,5]
[404567051,1770299444042,-2000.0,0.00017998,5]
[404567052,1770299444053,-217.15233878,0.00017998,5]
[404567053,1770299444063,-500.0,0.00017998,5]
[404567054,1770299444073,-2000.0,0.00017998,5]
[404567055,1770299444083,-225.18697532,0.00017998,5]
[404567056,1770299444094,-500.0,0.00017998,5]
[404567057,1770299444104,-2000.0,0.00017998,5]
[404567058,1770299444114,-500.0,0.00017998,5]
[404567059,1770299444125,-151.0,0.00017998,5]
[404567060,1770299444136,-2000.0,0.00017998,5]
[404567061,1770299444147,-500.0,0.00017998,5]
[404567062,1770299444158,-151.0,0.00017998,5]
[404567063,1770299444169,-2000.0,0.00017998,5]
[404567064,1770299444179,-209.40437684,0.00017998,5]
[404567065,1770299444190,-151.0,0.00017998,5]
[404567066,1770299444201,-2000.0,0.00017998,5]
[404567067,1770299444211,-217.15233878,0.00017998,5]
[404567068,1770299444227,-151.0,0.00017998,5]
[404567069,1770299444238,-2000.0,0.00017998,5]
[404567070,1770299444248,-233.51889341,0.00017998,5]
[404567071,1770299444259,-225.18697532,0.00017998,5]
[404567072,1770299444270,-151.0,0.00017998,5]
[404567073,1770299444281,-233.51889341,0.00017998,5]
[404567074,1770299444292,-151.0,0.00017998,5]
[404567075,1770299444303,-242.15909246,0.00017998,5]
[404567076,1770299444314,-151.0,0.00017998,5]
[404567077,1770299444325,-251.11897888,0.00017998,5]
[404567078,1770299444336,-151.0,0.00017998,5]
[404567079,1770299444347,-151.0,0.00017998,5]
[404567080,1770299444358,-260.4103811,0.00017998,5]
[404567081,1770299444369,-1428.38747117,0.00017998,5]
[404567082,1770299444380,-151.0,0.00017998,5]
[404567083,1770299444391,-270.0455652,0.00017998,5]
[404567084,1770299444404,-1481.23780761,0.00017998,5]
[404567085,1770299444415,-242.15909246,0.00017998,5]
[404567086,1770299444427,-151.0,0.00017998,5]
[404567087,1770299444438,-280.03725112,0.00017998,5]
[404567088,1770299444449,-1536.04360649,0.00017998,5]
[404567089,1770299444461,-251.11897888,0.00017998,5]
[404567090,1770299444472,-290.39862941,0.00017998,5]
[404567091,1770299444483,-1592.87721993,0.00017998,5]
[404567092,1770299444495,-260.4103811,0.00017998,5]
[404567093,1770299444508,-301.1433787,0.00017998,5]
[404567094,1770299444518,-1651.81367706,0.00017998,5]
[404567095,1770299444529,-270.0455652,0.00017998,5]
[404567096,1770299444540,-1712.93078312,0.00017998,5]
[404567097,1770299444551,-280.03725112,0.00017998,5]
[404567098,1770299444563,-250.0,0.00017998,5]
[404567099,1770299444580,-1776.30922209,0.00017998,5]
[404567100,1770299444591,-200.0,0.00017998,5]
[404567101,1770299444602,-290.39862941,0.00017998,5]
[404567102,1770299444614,-250.0,0.00017998,5]
[404567103,1770299444625,-200.0,0.00017998,5]
[404567104,1770299444635,-301.1433787,0.00017998,5]
[404567105,1770299444646,-250.0,0.00017998,5]
[404567106,1770299444656,-200.0,0.00017998,5]
[404567107,1770299444666,-250.0,0.00017998,5]
[404567108,1770299444676,-200.0,0.00017998,5]
[404567109,1770299444687,-250.0,0.00017998,5]
[404567110,1770299444698,-200.0,0.00017998,5]
[404567111,1770299444708,-250.0,0.00017998,5]
[404567112,1770299444719,-200.0,0.00017998,5]
[404567113,1770299444730,-250.0,0.00017998,5]
[404567114,1770299444740,-200.0,0.00017998,5]
[404567115,1770299444751,-250.0,0.00017998,5]
[404567116,1770299444766,-200.0,0.00017998,5]
[404567117,1770299444777,-250.0,0.00017998,5]
[404567118,1770299444788,-200.0,0.00017998,5]
[404567119,1770299444799,-250.0,0.00017998,5]
[404567120,1770299444809,-500.0,0.00017998,5]
[404567121,1770299444820,-200.0,0.00017998,5]
[404567122,1770299444831,-250.0,0.00017998,5]
[404567123,1770299444842,-500.0,0.00017998,5]
[404567124,1770299444853,-200.0,0.00017998,5]
[404567125,1770299444863,-500.0,0.00017998,5]
[404567126,1770299444874,-200.0,0.00017998,5]
[404567127,1770299444885,-500.0,0.00017998,5]
[404567128,1770299444899,-200.0,0.00017998,5]
[404567129,1770299444909,-200.0,0.00017998,5]
[404567130,1770299444920,-500.0,0.00017998,5]
[404567131,1770299444930,-200.0,0.00017998,5]
[404567132,1770299444941,-500.0,0.00017998,5]
[404567133,1770299444956,-250.0,0.00017998,5]
[404567134,1770299444967,-500.0,0.00017998,5]
[404567135,1770299444977,-200.0,0.00017998,5]
[404567136,1770299444988,-250.0,0.00017998,5]
[404567137,1770299444998,-200.0,0.00017998,5]
[404567138,1770299445008,-500.0,0.00017998,5]
[404567139,1770299445019,-250.0,0.00017998,5]
[404567140,1770299445030,-500.0,0.00017998,5]
[404567141,1770299445040,-199.92628631,0.00017998,5]
[404567142,1770299445051,-500.0,0.00017998,5]
[404567143,1770299445062,-270.21862608,0.00017998,5]
[404567144,1770299445073,-500.0,0.00017998,5]
[404567145,1770299445084,-578.20924308,0.00017998,5]
[404567146,1770299445094,-500.0,0.00017998,5]
[404567147,1770299445104,-500.0,0.00017998,5]
[404567148,1770299445115,-599.60298507,0.00017998,5]
[404567149,1770299445126,-500.0,0.00017998,5]
[404567150,1770299445136,-621.78829552,0.00017998,5]
[404567151,1770299445151,-500.0,0.00017998,5]
[404567152,1770299445161,-644.79446246,0.00017998,5]
[404567153,1770299445172,-500.0,0.00017998,5]
[404567154,1770299445182,-668.65185757,0.00017998,5]
[404567155,1770299445193,-500.0,0.00017998,5]
[404567156,1770299445203,-693.3919763,0.00017998,5]
[404567157,1770299445214,-500.0,0.00017998,5]
[404567158,1770299445225,-719.04747942,0.00017998,5]
[404567159,1770299445235,-500.0,0.00017998,5]
[404567160,1770299445246,-721.12765535,0.00017998,5]
[404567161,1770299445257,-745.65223616,0.00017998,5]
[404567162,1770299445267,-500.0,0.00017998,5]
[404567163,1770299445277,-747.8093786,0.00017998,5]
[404567164,1770299445288,-773.2413689,0.00017998,5]
[404567165,1770299445299,-500.0,0.00017998,5]
[404567166,1770299445310,-775.47832561,0.00017998,5]
[404567167,1770299445320,-801.85129955,0.00017998,5]
[404567168,1770299445331,-804.17102365,0.00017998,5]
[404567169,1770299445342,-833.92535153,0.00017998,5]
[404567170,1770299445353,-864.78058953,0.00017998,5]
[404567171,1770299445364,-784.35269858,0.00017998,5]
[404567172,1770299445375,-176.28122483,0.00017998,5]
[404567173,1770299445387,-743.50770149,0.00017998,5]
[404567174,1770299445399,-771.01748645,0.00017998,5]
[404567175,1770299445411,-799.54513345,0.00017998,5]
[404567176,1770299445422,-829.12830338,0.00017998,5]
[404567177,1770299445433,-859.80605061,0.00017998,5]